[Event "Titled Tuesday Blitz May 2 Late 2023"]
[White "Bayo Milagro, Alvaro"]
[Black "Papasimakopoulos, Alexandros"]
[WhiteFideId "22275240"]
[BlackFideId "4244125"]
[WhiteElo "2270"]
[BlackElo "2359"]
[Result "0-1"]
[Round "10"]
[TimeControl "180+2"]
[Date "2023.05.02"]
[WhiteClock "0:00:02"]
[BlackClock "0:00:28"]

1. d4 {[%clk 0:03:00]}  Nf6 {[%clk 0:02:57]} 2. Nf3 {[%clk 0:03:00]}  b6 {[%clk 0:02:57]} 3. c4 {[%clk 0:03:00]}  Bb7 {[%clk 0:02:57]} 4. Nc3 {[%clk 0:03:01]}  e6 {[%clk 0:02:57]} 5. a3 {[%clk 0:03:01]}  d5 {[%clk 0:02:55]} 6. cxd5 {[%clk 0:03:01]}  Nxd5 {[%clk 0:02:55]} 7. Qc2 {[%clk 0:03:02]}  Be7 {[%clk 0:02:54]} 8. Bd2 {[%clk 0:03:02]}  O-O {[%clk 0:02:53]} 9. O-O-O {[%clk 0:02:57]}  Nd7 {[%clk 0:02:49]} 10. e4 {[%clk 0:02:57]}  Nxc3 {[%clk 0:02:47]} 11. Bxc3 {[%clk 0:02:58]}  Re8 {[%clk 0:02:38]} 12. h4 {[%clk 0:02:57]}  Nf8 {[%clk 0:02:38]} 13. Kb1 {[%clk 0:02:56]}  Qc8 {[%clk 0:02:30]} 14. h5 {[%clk 0:02:43]}  h6 {[%clk 0:02:30]} 15. Rg1 {[%clk 0:02:39]}  Ba6 {[%clk 0:02:26]} 16. g4 {[%clk 0:02:28]}  Bxf1 {[%clk 0:02:25]} 17. Rdxf1 {[%clk 0:02:29]}  Nh7 {[%clk 0:02:25]} 18. Ne5 {[%clk 0:02:24]}  c5 {[%clk 0:02:21]} 19. d5 {[%clk 0:02:22]}  exd5 {[%clk 0:02:17]} 20. exd5 {[%clk 0:02:22]}  Qb7 {[%clk 0:02:08]} 21. Nxf7 {[%clk 0:02:09]}  Bf8 {[%clk 0:01:37]} 22. g5 {[%clk 0:01:36]}  Qxf7 {[%clk 0:01:30]} 23. g6 {[%clk 0:01:37]}  Qxd5 {[%clk 0:01:29]} 24. gxh7+ {[%clk 0:01:37]}  Kh8 {[%clk 0:01:29]} 25. Rg4 {[%clk 0:01:10]}  Qxh5 {[%clk 0:01:16]} 26. Rfg1 {[%clk 0:01:08]}  Re7 {[%clk 0:01:17]} 27. Rf4 {[%clk 0:00:30]}  Rae8 {[%clk 0:01:09]} 28. Qd3 {[%clk 0:00:14]}  Rf7 {[%clk 0:00:51]} 29. Qc4 {[%clk 0:00:04]}  Ree7 {[%clk 0:00:41]} 30. Rxf7 {[%clk 0:00:02]}  Qxf7 {[%clk 0:00:37]} 31. Qd3 {[%clk 0:00:03]}  Qe6 {[%clk 0:00:34]} 32. Ka1 {[%clk 0:00:03]}  Rf7 {[%clk 0:00:30]} 33. Qd8 {[%clk 0:00:03]}  Kxh7 {[%clk 0:00:30]} 34. Qd3+ {[%clk 0:00:02]}  Qf5 {[%clk 0:00:30]} 35. Qd8 {[%clk 0:00:02]}  Be7 {[%clk 0:00:28]} 36. Qc8 {[%clk 0:00:02]} 0-1


[Site "https://www.chess.com"]

[Event "Titled Tuesday Blitz May 2 Late 2023"]
[White "Averjanov, Alexey"]
[Black "Erzhanov, Arman"]
[WhiteFideId "14109867"]
[BlackFideId "4138821"]
[WhiteElo "2399"]
[BlackElo "2138"]
[Result "1-0"]
[Round "10"]
[TimeControl "180+2"]
[Date "2023.05.02"]
[WhiteClock "0:00:11"]
[BlackClock "0:00:04"]

1. d4 {[%clk 0:03:00]}  d6 {[%clk 0:02:56]} 2. c4 {[%clk 0:03:00]}  e5 {[%clk 0:02:54]} 3. Nc3 {[%clk 0:03:01]}  exd4 {[%clk 0:02:53]} 4. Qxd4 {[%clk 0:03:02]}  Nc6 {[%clk 0:02:54]} 5. Qd2 {[%clk 0:03:02]}  Nf6 {[%clk 0:02:48]} 6. b3 {[%clk 0:03:03]}  a5 {[%clk 0:02:45]} 7. Bb2 {[%clk 0:03:02]}  a4 {[%clk 0:02:42]} 8. Rc1 {[%clk 0:03:02]}  axb3 {[%clk 0:02:32]} 9. axb3 {[%clk 0:03:03]}  Be7 {[%clk 0:02:26]} 10. Nf3 {[%clk 0:03:02]}  O-O {[%clk 0:02:26]} 11. g3 {[%clk 0:03:02]}  Na5 {[%clk 0:02:23]} 12. Qd1 {[%clk 0:03:01]}  c6 {[%clk 0:02:20]} 13. Bg2 {[%clk 0:03:01]}  Qb6 {[%clk 0:02:18]} 14. Nd2 {[%clk 0:03:01]}  Be6 {[%clk 0:02:14]} 15. O-O {[%clk 0:02:59]}  Nxc4 {[%clk 0:02:11]} 16. Nxc4 {[%clk 0:02:41]}  Bxc4 {[%clk 0:02:11]} 17. Na4 {[%clk 0:02:36]}  Qxb3 {[%clk 0:02:03]} 18. Bxf6 {[%clk 0:01:52]}  Bxf6 {[%clk 0:01:53]} 19. Rxc4 {[%clk 0:01:39]}  Qxc4 {[%clk 0:01:51]} 20. Nb6 {[%clk 0:01:40]}  Qc5 {[%clk 0:01:38]} 21. Nxa8 {[%clk 0:01:41]}  Rxa8 {[%clk 0:01:37]} 22. Qb3 {[%clk 0:01:12]}  b5 {[%clk 0:01:37]} 23. Qf3 {[%clk 0:01:09]}  d5 {[%clk 0:01:36]} 24. e4 {[%clk 0:01:07]}  d4 {[%clk 0:01:26]} 25. h4 {[%clk 0:00:59]}  Qc3 {[%clk 0:01:20]} 26. Qf5 {[%clk 0:00:55]}  d3 {[%clk 0:01:17]} 27. f4 {[%clk 0:00:51]}  Bd4+ {[%clk 0:01:13]} 28. Kh1 {[%clk 0:00:50]}  g6 {[%clk 0:01:11]} 29. Qd7 {[%clk 0:00:46]}  Ra1 {[%clk 0:01:09]} 30. e5 {[%clk 0:00:44]}  d2 {[%clk 0:01:09]} 31. Qd8+ {[%clk 0:00:42]}  Kg7 {[%clk 0:01:07]} 32. Qf6+ {[%clk 0:00:40]}  Kf8 {[%clk 0:00:55]} 33. Qd6+ {[%clk 0:00:37]}  Kg8 {[%clk 0:00:49]} 34. Qd8+ {[%clk 0:00:34]}  Kg7 {[%clk 0:00:49]} 35. Qf6+ {[%clk 0:00:32]}  Kg8 {[%clk 0:00:47]} 36. Kh2 {[%clk 0:00:30]}  Ra8 {[%clk 0:00:38]} 37. h5 {[%clk 0:00:27]}  Qc5 {[%clk 0:00:17]} 38. Rd1 {[%clk 0:00:24]}  Be3 {[%clk 0:00:16]} 39. Bxc6 {[%clk 0:00:21]}  Rc8 {[%clk 0:00:12]} 40. h6 {[%clk 0:00:18]}  Qf8 {[%clk 0:00:12]} 41. e6 {[%clk 0:00:19]}  Qxh6+ {[%clk 0:00:11]} 42. Kg2 {[%clk 0:00:18]}  Qf8 {[%clk 0:00:10]} 43. e7 {[%clk 0:00:14]}  Qg7 {[%clk 0:00:07]} 44. Qxg7+ {[%clk 0:00:11]}  Kxg7 {[%clk 0:00:07]} 45. e8=Q {[%clk 0:00:12]}  Rxe8 {[%clk 0:00:07]} 46. Bxe8 {[%clk 0:00:13]}  b4 {[%clk 0:00:08]} 47. Kf3 {[%clk 0:00:13]}  Bd4 {[%clk 0:00:07]} 48. Rxd2 {[%clk 0:00:13]}  Bc3 {[%clk 0:00:08]} 49. Rc2 {[%clk 0:00:12]}  Kf6 {[%clk 0:00:08]} 50. Ba4 {[%clk 0:00:12]}  Ke7 {[%clk 0:00:08]} 51. Bb3 {[%clk 0:00:13]}  f6 {[%clk 0:00:08]} 52. Re2+ {[%clk 0:00:13]}  Kd6 {[%clk 0:00:08]} 53. g4 {[%clk 0:00:14]}  Kc5 {[%clk 0:00:09]} 54. Ke4 {[%clk 0:00:14]}  h5 {[%clk 0:00:07]} 55. gxh5 {[%clk 0:00:14]}  gxh5 {[%clk 0:00:08]} 56. Rh2 {[%clk 0:00:14]}  Be1 {[%clk 0:00:04]} 57. Rxh5+ {[%clk 0:00:14]}  Kd6 {[%clk 0:00:04]} 58. Rd5+ {[%clk 0:00:12]}  Kc6 {[%clk 0:00:04]} 59. Rf5 {[%clk 0:00:11]}  Bc3 {[%clk 0:00:05]} 60. Rh5 {[%clk 0:00:11]}  Kd6 {[%clk 0:00:05]} 61. Kf5 {[%clk 0:00:11]}  Kc5 {[%clk 0:00:05]} 62. Rh6 {[%clk 0:00:11]}  Kd4 {[%clk 0:00:06]} 63. Rxf6 {[%clk 0:00:11]}  Ke3 {[%clk 0:00:04]} 64. Rd6 {[%clk 0:00:11]}  Kf3 {[%clk 0:00:03]} 65. Rd7 {[%clk 0:00:10]}  Bd2 {[%clk 0:00:04]} 66. Rxd2 {[%clk 0:00:10]}  Ke3 {[%clk 0:00:04]} 67. Rd5 {[%clk 0:00:10]}  Kf3 {[%clk 0:00:04]} 68. Ke5 {[%clk 0:00:11]}  Ke3 {[%clk 0:00:04]} 69. f5 {[%clk 0:00:11]} 1-0


[Site "https://www.chess.com"]

[Event "Titled Tuesday Blitz May 2 Late 2023"]
[White "Tsotsonava, Elene"]
[Black "Pantev, Veselin"]
[WhiteFideId "13615939"]
[BlackFideId "2901390"]
[WhiteElo "1829"]
[BlackElo "2427"]
[Result "1-0"]
[Round "10"]
[TimeControl "180+2"]
[Date "2023.05.02"]
[WhiteClock "0:00:11"]
[BlackClock "0:00:11"]

1. d4 {[%clk 0:03:00]}  Nf6 {[%clk 0:02:30]} 2. Nf3 {[%clk 0:02:59]}  e6 {[%clk 0:02:30]} 3. c4 {[%clk 0:02:58]}  Bb4+ {[%clk 0:02:30]} 4. Bd2 {[%clk 0:02:56]}  c5 {[%clk 0:02:30]} 5. g3 {[%clk 0:02:53]}  Qb6 {[%clk 0:02:29]} 6. Bg2 {[%clk 0:02:47]}  cxd4 {[%clk 0:02:29]} 7. O-O {[%clk 0:02:46]}  Bxd2 {[%clk 0:02:28]} 8. Qxd2 {[%clk 0:02:44]}  Nc6 {[%clk 0:02:28]} 9. Na3 {[%clk 0:02:44]}  a6 {[%clk 0:02:25]} 10. Rac1 {[%clk 0:02:38]}  d6 {[%clk 0:02:25]} 11. e3 {[%clk 0:02:30]}  dxe3 {[%clk 0:02:23]} 12. Qxd6 {[%clk 0:02:29]}  exf2+ {[%clk 0:02:19]} 13. Kh1 {[%clk 0:02:30]}  Qd8 {[%clk 0:02:11]} 14. Qc5 {[%clk 0:02:22]}  Qe7 {[%clk 0:02:09]} 15. Qxf2 {[%clk 0:02:21]}  O-O {[%clk 0:02:08]} 16. c5 {[%clk 0:02:20]}  e5 {[%clk 0:01:55]} 17. Nc4 {[%clk 0:02:20]}  Bg4 {[%clk 0:01:54]} 18. Nd6 {[%clk 0:02:18]}  Rab8 {[%clk 0:01:37]} 19. Rfe1 {[%clk 0:02:15]}  Nd7 {[%clk 0:01:37]} 20. Nh4 {[%clk 0:02:02]}  g6 {[%clk 0:01:26]} 21. Nf3 {[%clk 0:01:27]}  Be6 {[%clk 0:01:22]} 22. a3 {[%clk 0:01:22]}  a5 {[%clk 0:01:19]} 23. Qd2 {[%clk 0:01:09]}  f6 {[%clk 0:01:02]} 24. b4 {[%clk 0:01:08]}  axb4 {[%clk 0:00:56]} 25. axb4 {[%clk 0:01:09]}  Nd8 {[%clk 0:00:53]} 26. Nh4 {[%clk 0:00:52]}  f5 {[%clk 0:00:50]} 27. Nf3 {[%clk 0:00:43]}  e4 {[%clk 0:00:50]} 28. Ng5 {[%clk 0:00:42]}  h6 {[%clk 0:00:39]} 29. Nxe6 {[%clk 0:00:41]}  Nxe6 {[%clk 0:00:40]} 30. Qxh6 {[%clk 0:00:41]}  Qg7 {[%clk 0:00:40]} 31. Qd2 {[%clk 0:00:39]}  Rfd8 {[%clk 0:00:35]} 32. Qd5 {[%clk 0:00:37]}  Qe5 {[%clk 0:00:35]} 33. Bxe4 {[%clk 0:00:32]}  fxe4 {[%clk 0:00:30]} 34. Qxe5 {[%clk 0:00:31]}  Nxe5 {[%clk 0:00:30]} 35. Rxe4 {[%clk 0:00:28]}  Nd3 {[%clk 0:00:30]} 36. Rf1 {[%clk 0:00:24]}  Nf8 {[%clk 0:00:17]} 37. Rf3 {[%clk 0:00:17]}  Nb2 {[%clk 0:00:15]} 38. Kg2 {[%clk 0:00:11]}  b6 {[%clk 0:00:15]} 39. Re7 {[%clk 0:00:09]}  bxc5 {[%clk 0:00:14]} 40. bxc5 {[%clk 0:00:09]}  Na4 {[%clk 0:00:14]} 41. Rff7 {[%clk 0:00:08]}  Rxd6 {[%clk 0:00:08]} 42. cxd6 {[%clk 0:00:07]}  Nc5 {[%clk 0:00:07]} 43. Rg7+ {[%clk 0:00:06]}  Kh8 {[%clk 0:00:07]} 44. Rgf7 {[%clk 0:00:07]}  Rd8 {[%clk 0:00:06]} 45. Rf6 {[%clk 0:00:08]}  Ncd7 {[%clk 0:00:06]} 46. Rf4 {[%clk 0:00:07]}  Kg8 {[%clk 0:00:05]} 47. h4 {[%clk 0:00:07]}  Ne5 {[%clk 0:00:05]} 48. Rxe5 {[%clk 0:00:05]}  Rxd6 {[%clk 0:00:06]} 49. Re8 {[%clk 0:00:05]}  Kg7 {[%clk 0:00:06]} 50. Rexf8 {[%clk 0:00:05]}  Rd7 {[%clk 0:00:07]} 51. Kh3 {[%clk 0:00:04]}  Rc7 {[%clk 0:00:07]} 52. Re8 {[%clk 0:00:04]}  Rd7 {[%clk 0:00:07]} 53. Ree4 {[%clk 0:00:05]}  Rc7 {[%clk 0:00:08]} 54. Rg4 {[%clk 0:00:06]}  Rd7 {[%clk 0:00:08]} 55. Rg5 {[%clk 0:00:07]}  Kh7 {[%clk 0:00:09]} 56. Reg4 {[%clk 0:00:08]}  Rd6 {[%clk 0:00:09]} 57. Rxg6 {[%clk 0:00:08]}  Rd7 {[%clk 0:00:09]} 58. h5 {[%clk 0:00:09]}  Rc7 {[%clk 0:00:10]} 59. Kh4 {[%clk 0:00:09]}  Rc8 {[%clk 0:00:10]} 60. Rg7+ {[%clk 0:00:10]}  Kh8 {[%clk 0:00:10]} 61. Rg8+ {[%clk 0:00:09]}  Rxg8 {[%clk 0:00:10]} 62. Rxg8+ {[%clk 0:00:10]}  Kxg8 {[%clk 0:00:11]} 63. Kg5 {[%clk 0:00:11]} 1-0


[Site "https://www.chess.com"]

[Event "Titled Tuesday Blitz May 2 Late 2023"]
[White "Baskin, Robert"]
[Black "Hansen, Eric"]
[WhiteFideId "24662402"]
[BlackFideId "2606771"]
[WhiteElo "2472"]
[BlackElo "2561"]
[Result "0-1"]
[Round "10"]
[TimeControl "180+2"]
[Date "2023.05.02"]
[WhiteClock "0:01:27"]
[BlackClock "0:01:51"]

1. e4 {[%clk 0:03:00]}  c5 {[%clk 0:02:57]} 2. Nc3 {[%clk 0:02:59]}  Nc6 {[%clk 0:02:49]} 3. Nf3 {[%clk 0:02:56]}  e6 {[%clk 0:02:48]} 4. d4 {[%clk 0:02:53]}  cxd4 {[%clk 0:02:47]} 5. Nxd4 {[%clk 0:02:54]}  Qc7 {[%clk 0:02:47]} 6. f4 {[%clk 0:02:50]}  a6 {[%clk 0:02:46]} 7. Nxc6 {[%clk 0:02:48]}  Qxc6 {[%clk 0:02:46]} 8. Bd3 {[%clk 0:02:48]}  b5 {[%clk 0:02:46]} 9. a3 {[%clk 0:02:44]}  Bb7 {[%clk 0:02:46]} 10. Qe2 {[%clk 0:02:44]}  Nf6 {[%clk 0:02:38]} 11. Bd2 {[%clk 0:02:43]}  Rc8 {[%clk 0:02:33]} 12. e5 {[%clk 0:02:29]}  Nd5 {[%clk 0:02:32]} 13. Ne4 {[%clk 0:02:29]}  Be7 {[%clk 0:02:29]} 14. O-O {[%clk 0:02:19]}  O-O {[%clk 0:02:26]} 15. Kh1 {[%clk 0:02:18]}  f5 {[%clk 0:02:25]} 16. exf6 {[%clk 0:02:18]}  Nxf6 {[%clk 0:02:26]} 17. Ng5 {[%clk 0:02:06]}  h6 {[%clk 0:02:22]} 18. Nf3 {[%clk 0:02:05]}  Bd6 {[%clk 0:02:09]} 19. Rae1 {[%clk 0:02:04]}  Qd5 {[%clk 0:02:00]} 20. Ne5 {[%clk 0:01:58]}  Bxe5 {[%clk 0:01:54]} 21. Qxe5 {[%clk 0:01:27]}  Qxg2# {[%clk 0:01:51]} 0-1


[Site "https://www.chess.com"]

[Event "Titled Tuesday Blitz May 2 Late 2023"]
[White "Adewumi, Tanitoluwa"]
[Black "Szpar, Milosz"]
[WhiteFideId "30966396"]
[BlackFideId "1184989"]
[WhiteElo "2283"]
[BlackElo "2436"]
[Result "0-1"]
[Round "10"]
[TimeControl "180+2"]
[Date "2023.05.02"]
[WhiteClock "0:00:09"]
[BlackClock "0:00:05"]

1. e4 {[%clk 0:01:45]}  e6 {[%clk 0:01:47]} 2. d4 {[%clk 0:01:45]}  d5 {[%clk 0:01:47]} 3. exd5 {[%clk 0:01:43]}  exd5 {[%clk 0:01:47]} 4. Nf3 {[%clk 0:01:44]}  Nc6 {[%clk 0:01:47]} 5. Nc3 {[%clk 0:01:42]}  Bg4 {[%clk 0:01:45]} 6. Bb5 {[%clk 0:01:38]}  Bb4 {[%clk 0:01:37]} 7. O-O {[%clk 0:01:35]}  Ne7 {[%clk 0:01:37]} 8. h3 {[%clk 0:01:33]}  Bh5 {[%clk 0:01:32]} 9. a3 {[%clk 0:01:29]}  Bxc3 {[%clk 0:01:31]} 10. bxc3 {[%clk 0:01:30]}  O-O {[%clk 0:01:30]} 11. Bd3 {[%clk 0:01:27]}  Bg6 {[%clk 0:01:30]} 12. Rb1 {[%clk 0:01:27]}  b6 {[%clk 0:01:30]} 13. Re1 {[%clk 0:01:27]}  Nf5 {[%clk 0:01:28]} 14. Bg5 {[%clk 0:01:20]}  Qc8 {[%clk 0:01:25]} 15. c4 {[%clk 0:01:03]}  dxc4 {[%clk 0:01:19]} 16. Be4 {[%clk 0:00:43]}  Qd7 {[%clk 0:01:12]} 17. Ne5 {[%clk 0:00:33]}  Nxe5 {[%clk 0:01:12]} 18. Bxa8 {[%clk 0:00:32]}  Nxd4 {[%clk 0:01:12]} 19. Rxe5 {[%clk 0:00:20]}  Bxc2 {[%clk 0:01:11]} 20. Rd5 {[%clk 0:00:14]}  Qc8 {[%clk 0:00:28]} 21. Qxd4 {[%clk 0:00:12]}  Bxb1 {[%clk 0:00:29]} 22. Bc6 {[%clk 0:00:11]}  Qe6 {[%clk 0:00:26]} 23. Qxc4 {[%clk 0:00:07]}  Be4 {[%clk 0:00:24]} 24. Rd4 {[%clk 0:00:03]}  Bxc6 {[%clk 0:00:23]} 25. Qxe6 {[%clk 0:00:03]}  fxe6 {[%clk 0:00:23]} 26. Rc4 {[%clk 0:00:04]}  Bd5 {[%clk 0:00:18]} 27. Rxc7 {[%clk 0:00:05]}  Rf7 {[%clk 0:00:17]} 28. Rc8+ {[%clk 0:00:05]}  Rf8 {[%clk 0:00:18]} 29. Rc7 {[%clk 0:00:06]}  a5 {[%clk 0:00:13]} 30. Be3 {[%clk 0:00:05]}  b5 {[%clk 0:00:11]} 31. Bc5 {[%clk 0:00:05]}  Re8 {[%clk 0:00:07]} 32. Bd4 {[%clk 0:00:05]}  e5 {[%clk 0:00:08]} 33. Bc3 {[%clk 0:00:06]}  a4 {[%clk 0:00:05]} 34. Rc5 {[%clk 0:00:06]}  Bc4 {[%clk 0:00:05]} 35. Bxe5 {[%clk 0:00:06]}  Re7 {[%clk 0:00:05]} 36. f4 {[%clk 0:00:06]}  Rd7 {[%clk 0:00:05]} 37. g4 {[%clk 0:00:04]}  Kf7 {[%clk 0:00:05]} 38. f5 {[%clk 0:00:03]}  g6 {[%clk 0:00:04]} 39. Kf2 {[%clk 0:00:04]}  gxf5 {[%clk 0:00:04]} 40. gxf5 {[%clk 0:00:04]}  Rd5 {[%clk 0:00:04]} 41. Rc7+ {[%clk 0:00:04]}  Ke8 {[%clk 0:00:03]} 42. Bc3 {[%clk 0:00:04]}  Rxf5+ {[%clk 0:00:03]} 43. Ke3 {[%clk 0:00:05]}  Rf7 {[%clk 0:00:03]} 44. Rc8+ {[%clk 0:00:05]}  Kd7 {[%clk 0:00:04]} 45. Rc5 {[%clk 0:00:05]}  Kd6 {[%clk 0:00:04]} 46. Bb4 {[%clk 0:00:06]}  Ke6 {[%clk 0:00:05]} 47. Kd4 {[%clk 0:00:06]}  Rf3 {[%clk 0:00:04]} 48. Rh5 {[%clk 0:00:06]}  Rd3+ {[%clk 0:00:04]} 49. Ke4 {[%clk 0:00:06]}  Rg3 {[%clk 0:00:01]} 50. Rh6+ {[%clk 0:00:05]}  Rg6 {[%clk 0:00:01]} 51. Rxh7 {[%clk 0:00:06]}  Rg3 {[%clk 0:00:01]} 52. Rh6+ {[%clk 0:00:06]}  Kf7 {[%clk 0:00:02]} 53. Kf4 {[%clk 0:00:06]}  Rd3 {[%clk 0:00:02]} 54. Rb6 {[%clk 0:00:06]}  Rd4+ {[%clk 0:00:02]} 55. Ke5 {[%clk 0:00:05]}  Rd5+ {[%clk 0:00:03]} 56. Ke4 {[%clk 0:00:06]}  Rh5 {[%clk 0:00:03]} 57. Rb7+ {[%clk 0:00:04]}  Kf6 {[%clk 0:00:04]} 58. Bc3+ {[%clk 0:00:04]}  Ke6 {[%clk 0:00:04]} 59. Rb6+ {[%clk 0:00:04]}  Kd7 {[%clk 0:00:04]} 60. Be5 {[%clk 0:00:04]}  Rxh3 {[%clk 0:00:03]} 61. Rd6+ {[%clk 0:00:04]}  Ke7 {[%clk 0:00:03]} 62. Rb6 {[%clk 0:00:05]}  Rh4+ {[%clk 0:00:04]} 63. Kf5 {[%clk 0:00:05]}  Rh5+ {[%clk 0:00:04]} 64. Ke4 {[%clk 0:00:05]}  Rh3 {[%clk 0:00:04]} 65. Kd4 {[%clk 0:00:04]}  Rd3+ {[%clk 0:00:03]} 66. Ke4 {[%clk 0:00:05]}  Kd7 {[%clk 0:00:04]} 67. Rb7+ {[%clk 0:00:01]}  Kc6 {[%clk 0:00:04]} 68. Rc7+ {[%clk 0:00:01]}  Kb6 {[%clk 0:00:04]} 69. Rc8 {[%clk 0:00:02]}  Rxa3 {[%clk 0:00:05]} 70. Bd4+ {[%clk 0:00:02]}  Kb7 {[%clk 0:00:04]} 71. Rc5 {[%clk 0:00:03]}  Rb3 {[%clk 0:00:04]} 72. Ke5 {[%clk 0:00:03]}  Rd3 {[%clk 0:00:04]} 73. Bf2 {[%clk 0:00:02]}  a3 {[%clk 0:00:04]} 74. Ke4 {[%clk 0:00:01]}  a2 {[%clk 0:00:04]} 75. Bd4 {[%clk 0:00:01]}  Rxd4+ {[%clk 0:00:04]} 76. Kxd4 {[%clk 0:00:02]}  a1=Q+ {[%clk 0:00:04]} 77. Ke3 {[%clk 0:00:03]}  Qg1+ {[%clk 0:00:04]} 78. Ke4 {[%clk 0:00:03]}  Qxc5 {[%clk 0:00:05]} 79. Kf3 {[%clk 0:00:04]}  b4 {[%clk 0:00:05]} 80. Kg2 {[%clk 0:00:04]}  b3 {[%clk 0:00:06]} 81. Kg3 {[%clk 0:00:05]}  Qd4 {[%clk 0:00:06]} 82. Kh2 {[%clk 0:00:06]}  b2 {[%clk 0:00:06]} 83. Kg2 {[%clk 0:00:07]}  Qc3 {[%clk 0:00:06]} 84. Kh2 {[%clk 0:00:08]}  b1=Q {[%clk 0:00:06]} 85. Kg2 {[%clk 0:00:09]}  Qbb2+ {[%clk 0:00:06]} 86. Kg1 {[%clk 0:00:09]}  Qcc1# {[%clk 0:00:05]} 0-1


[Site "https://www.chess.com"]

[Event "Titled Tuesday Blitz May 2 Late 2023"]
[White "Samsonkin, Artiom"]
[Black "Mortazavi, Ali"]
[WhiteFideId "13503111"]
[BlackFideId "401323"]
[WhiteElo "2524"]
[BlackElo "2339"]
[Result "1-0"]
[Round "10"]
[TimeControl "180+2"]
[Date "2023.05.02"]
[WhiteClock "0:01:00"]
[BlackClock "0:00:55"]

1. e4 {[%clk 0:02:59]}  c6 {[%clk 0:02:59]} 2. d4 {[%clk 0:02:59]}  d5 {[%clk 0:02:59]} 3. e5 {[%clk 0:03:00]}  Bf5 {[%clk 0:02:59]} 4. h4 {[%clk 0:03:00]}  c5 {[%clk 0:02:58]} 5. dxc5 {[%clk 0:02:58]}  Nc6 {[%clk 0:02:59]} 6. Bb5 {[%clk 0:02:45]}  Qc7 {[%clk 0:02:59]} 7. Nc3 {[%clk 0:02:28]}  e6 {[%clk 0:02:58]} 8. g4 {[%clk 0:02:20]}  Qxe5+ {[%clk 0:02:58]} 9. Kf1 {[%clk 0:02:20]}  Bxc5 {[%clk 0:02:53]} 10. gxf5 {[%clk 0:02:13]}  Qxf5 {[%clk 0:02:53]} 11. Qf3 {[%clk 0:02:09]}  Ne7 {[%clk 0:02:43]} 12. Qxf5 {[%clk 0:02:00]}  Nxf5 {[%clk 0:02:43]} 13. Nf3 {[%clk 0:02:01]}  O-O-O {[%clk 0:02:36]} 14. Bxc6 {[%clk 0:02:01]}  bxc6 {[%clk 0:02:36]} 15. Ne5 {[%clk 0:02:02]}  Kb7 {[%clk 0:02:31]} 16. Nxf7 {[%clk 0:01:36]}  Rdf8 {[%clk 0:02:31]} 17. Nxh8 {[%clk 0:01:37]}  Ng3+ {[%clk 0:02:32]} 18. Kg2 {[%clk 0:01:37]}  Nxh1 {[%clk 0:02:25]} 19. Kxh1 {[%clk 0:01:38]}  Rxh8 {[%clk 0:02:23]} 20. Be3 {[%clk 0:01:32]}  Bd6 {[%clk 0:02:13]} 21. Na4 {[%clk 0:01:26]}  e5 {[%clk 0:02:13]} 22. Bc5 {[%clk 0:01:25]}  Bc7 {[%clk 0:01:58]} 23. Kg2 {[%clk 0:01:24]}  Re8 {[%clk 0:01:51]} 24. Re1 {[%clk 0:01:23]}  Re6 {[%clk 0:01:45]} 25. h5 {[%clk 0:01:24]}  Rh6 {[%clk 0:01:41]} 26. Rh1 {[%clk 0:01:24]}  Rf6 {[%clk 0:01:33]} 27. Rh3 {[%clk 0:01:18]}  Rf5 {[%clk 0:01:27]} 28. Rg3 {[%clk 0:01:07]}  Rf7 {[%clk 0:01:22]} 29. Rb3+ {[%clk 0:01:03]}  Ka8 {[%clk 0:01:21]} 30. Rf3 {[%clk 0:01:00]}  Rxf3 {[%clk 0:01:21]} 31. Kxf3 {[%clk 0:01:01]}  g6 {[%clk 0:01:14]} 32. h6 {[%clk 0:01:01]}  Kb7 {[%clk 0:01:11]} 33. Bf8 {[%clk 0:01:01]}  Ka6 {[%clk 0:01:05]} 34. Nc5+ {[%clk 0:01:01]}  Kb5 {[%clk 0:01:04]} 35. Ne6 {[%clk 0:01:02]}  Bb6 {[%clk 0:01:02]} 36. Ng5 {[%clk 0:01:01]}  e4+ {[%clk 0:01:00]} 37. Ke2 {[%clk 0:01:02]}  d4 {[%clk 0:00:55]} 38. Nxe4 {[%clk 0:01:00]} 1-0


[Site "https://www.chess.com"]

[Event "Titled Tuesday Blitz May 2 Late 2023"]
[White "Aldokhin, Ivan"]
[Black "Shapiro, Viktor"]
[WhiteFideId "24115720"]
[BlackFideId "4175700"]
[WhiteElo "2322"]
[BlackElo "2152"]
[Result "1-0"]
[Round "10"]
[TimeControl "180+2"]
[Date "2023.05.02"]
[WhiteClock "0:00:18"]
[BlackClock "0:00:06"]

1. e4 {[%clk 0:03:00]}  Nf6 {[%clk 0:03:00]} 2. e5 {[%clk 0:03:00]}  Nd5 {[%clk 0:03:00]} 3. Nc3 {[%clk 0:03:01]}  Nb6 {[%clk 0:02:58]} 4. f4 {[%clk 0:03:01]}  d6 {[%clk 0:02:59]} 5. d4 {[%clk 0:03:02]}  dxe5 {[%clk 0:02:59]} 6. fxe5 {[%clk 0:03:01]}  g6 {[%clk 0:02:56]} 7. h4 {[%clk 0:02:59]}  c5 {[%clk 0:02:47]} 8. d5 {[%clk 0:02:53]}  Bg7 {[%clk 0:02:46]} 9. Bf4 {[%clk 0:02:52]}  h5 {[%clk 0:02:39]} 10. Qd2 {[%clk 0:02:52]}  Bg4 {[%clk 0:02:36]} 11. Nf3 {[%clk 0:02:47]}  N8d7 {[%clk 0:02:33]} 12. Qe3 {[%clk 0:02:22]}  O-O {[%clk 0:02:27]} 13. O-O-O {[%clk 0:02:21]}  e6 {[%clk 0:02:10]} 14. d6 {[%clk 0:02:18]}  c4 {[%clk 0:01:54]} 15. Be2 {[%clk 0:02:08]}  Rc8 {[%clk 0:01:45]} 16. Ng5 {[%clk 0:01:57]}  Bxe2 {[%clk 0:01:41]} 17. Qxe2 {[%clk 0:01:57]}  Rc5 {[%clk 0:01:35]} 18. g4 {[%clk 0:01:39]}  Bxe5 {[%clk 0:01:35]} 19. Be3 {[%clk 0:01:39]}  Ra5 {[%clk 0:01:07]} 20. gxh5 {[%clk 0:01:37]}  Bxc3 {[%clk 0:00:55]} 21. bxc3 {[%clk 0:01:37]}  Nd5 {[%clk 0:00:55]} 22. hxg6 {[%clk 0:01:29]}  fxg6 {[%clk 0:00:40]} 23. Bd4 {[%clk 0:01:24]}  e5 {[%clk 0:00:36]} 24. Qe4 {[%clk 0:01:14]}  Rf5 {[%clk 0:00:29]} 25. Bxe5 {[%clk 0:00:54]}  Nxe5 {[%clk 0:00:12]} 26. Rxd5 {[%clk 0:00:53]}  Qb6 {[%clk 0:00:10]} 27. d7 {[%clk 0:00:40]}  Qd8 {[%clk 0:00:09]} 28. Ne6 {[%clk 0:00:34]}  Rxd5 {[%clk 0:00:06]} 29. Qxd5 {[%clk 0:00:32]}  Nd3+ {[%clk 0:00:06]} 30. Qxd3 {[%clk 0:00:28]}  cxd3 {[%clk 0:00:04]} 31. Nxd8 {[%clk 0:00:29]}  Rd5 {[%clk 0:00:05]} 32. Nxb7 {[%clk 0:00:29]}  Rxd7 {[%clk 0:00:05]} 33. Nc5 {[%clk 0:00:29]}  Rc7 {[%clk 0:00:06]} 34. Nxd3 {[%clk 0:00:28]}  Rxc3 {[%clk 0:00:06]} 35. Rg1 {[%clk 0:00:28]}  Kh7 {[%clk 0:00:06]} 36. Nf4 {[%clk 0:00:25]}  Rc4 {[%clk 0:00:06]} 37. Nxg6 {[%clk 0:00:25]}  a5 {[%clk 0:00:06]} 38. Rg5 {[%clk 0:00:23]}  a4 {[%clk 0:00:07]} 39. Kb2 {[%clk 0:00:23]}  Rb4+ {[%clk 0:00:07]} 40. Ka3 {[%clk 0:00:22]}  Re4 {[%clk 0:00:07]} 41. h5 {[%clk 0:00:19]}  Kh6 {[%clk 0:00:08]} 42. Rc5 {[%clk 0:00:19]}  Re2 {[%clk 0:00:07]} 43. Nf4 {[%clk 0:00:19]}  Rf2 {[%clk 0:00:06]} 44. Nd3 {[%clk 0:00:18]}  Rh2 {[%clk 0:00:05]} 45. Kxa4 {[%clk 0:00:18]}  Rh4+ {[%clk 0:00:06]} 46. Kb5 {[%clk 0:00:18]} 1-0


[Site "https://www.chess.com"]